[Event "Early Titled Tuesday Blitz | February 8 2022"]
[White "Terletsky, Oleg"]
[Black "Vivas Zamora, Fabian Ernesto"]
[WhiteFideId "14116774"]
[BlackFideId "3902480"]
[WhiteElo "2050"]
[BlackElo "1966"]
[Result "0-1"]
[Round "09"]
[TimeControl "180+1"]
[Date "2022.02.08"]
[WhiteClock "0:01:35"]
[BlackClock "0:01:52"]

1. e4 {[%clk 0:03:00]}  e5 {[%clk 0:02:58]} 2. Nf3 {[%clk 0:03:00]}  Nc6 {[%clk 0:02:58]} 3. Nc3 {[%clk 0:03:00]}  Nf6 {[%clk 0:02:58]} 4. d4 {[%clk 0:03:01]}  exd4 {[%clk 0:02:59]} 5. Nxd4 {[%clk 0:03:01]}  Bb4 {[%clk 0:02:58]} 6. Nxc6 {[%clk 0:03:02]}  bxc6 {[%clk 0:02:59]} 7. Bd3 {[%clk 0:03:02]}  d5 {[%clk 0:02:59]} 8. exd5 {[%clk 0:03:03]}  O-O {[%clk 0:02:57]} 9. O-O {[%clk 0:03:03]}  Bg4 {[%clk 0:02:58]} 10. f3 {[%clk 0:03:03]}  Bh5 {[%clk 0:02:58]} 11. dxc6 {[%clk 0:03:02]}  Qd4+ {[%clk 0:02:59]} 12. Kh1 {[%clk 0:03:02]}  Bxc3 {[%clk 0:02:59]} 13. bxc3 {[%clk 0:03:02]}  Qxc3 {[%clk 0:03:00]} 14. Bf4 {[%clk 0:03:00]}  Qxc6 {[%clk 0:02:55]} 15. Qe2 {[%clk 0:03:00]}  Rfe8 {[%clk 0:02:52]} 16. Bb5 {[%clk 0:02:59]}  Rxe2 {[%clk 0:02:48]} 17. Bxc6 {[%clk 0:02:59]}  Rb8 {[%clk 0:02:22]} 18. Rab1 {[%clk 0:02:32]}  Rb6 {[%clk 0:02:15]} 19. Bxc7 {[%clk 0:02:25]}  Rxc6 {[%clk 0:02:13]} 20. Rb7 {[%clk 0:01:57]}  Rcxc2 {[%clk 0:02:09]} 21. g4 {[%clk 0:01:47]}  Bg6 {[%clk 0:02:05]} 22. g5 {[%clk 0:01:44]}  Ne8 {[%clk 0:02:01]} 23. Bg3 {[%clk 0:01:41]}  Rxa2 {[%clk 0:01:55]} 24. Rd1 {[%clk 0:01:36]}  h5 {[%clk 0:01:52]} 25. gxh6 {[%clk 0:01:35]}  gxh6 {[%clk 0:01:52]} 0-1


[Site "https://www.chess.com"]

[Event "Early Titled Tuesday Blitz | February 8 2022"]
[White "Urazayev, Arystanbek"]
[Black "Nazari, Arad"]
[WhiteFideId "13709810"]
[BlackFideId "12577324"]
[WhiteElo "2321"]
[BlackElo "2120"]
[Result "1-0"]
[Round "09"]
[TimeControl "180+1"]
[Date "2022.02.08"]
[WhiteClock "0:01:02"]
[BlackClock "0:00:14"]

1. e4 {[%clk 0:03:00]}  c5 {[%clk 0:02:57]} 2. Nf3 {[%clk 0:03:01]}  d6 {[%clk 0:02:55]} 3. d4 {[%clk 0:03:01]}  cxd4 {[%clk 0:02:54]} 4. Nxd4 {[%clk 0:03:02]}  Nf6 {[%clk 0:02:53]} 5. Nc3 {[%clk 0:03:02]}  a6 {[%clk 0:02:52]} 6. Rg1 {[%clk 0:03:02]}  e5 {[%clk 0:02:49]} 7. Nb3 {[%clk 0:03:02]}  h5 {[%clk 0:02:46]} 8. h3 {[%clk 0:03:02]}  Be6 {[%clk 0:02:45]} 9. g4 {[%clk 0:03:02]}  hxg4 {[%clk 0:02:44]} 10. hxg4 {[%clk 0:03:03]}  Be7 {[%clk 0:02:33]} 11. g5 {[%clk 0:03:03]}  Nfd7 {[%clk 0:02:29]} 12. g6 {[%clk 0:03:04]}  f6 {[%clk 0:02:28]} 13. Be3 {[%clk 0:03:04]}  Nc6 {[%clk 0:02:29]} 14. Nd5 {[%clk 0:03:04]}  Nc5 {[%clk 0:02:22]} 15. Bc4 {[%clk 0:02:57]}  b5 {[%clk 0:01:47]} 16. Nxc5 {[%clk 0:02:54]}  dxc5 {[%clk 0:01:41]} 17. Nxf6+ {[%clk 0:02:54]}  Bxf6 {[%clk 0:01:38]} 18. Bxe6 {[%clk 0:02:54]}  Qxd1+ {[%clk 0:01:31]} 19. Rxd1 {[%clk 0:02:54]}  Nd4 {[%clk 0:01:29]} 20. Bf7+ {[%clk 0:02:54]}  Ke7 {[%clk 0:01:28]} 21. Kf1 {[%clk 0:02:52]}  Rac8 {[%clk 0:01:08]} 22. c3 {[%clk 0:02:52]}  Nf3 {[%clk 0:01:06]} 23. Rg3 {[%clk 0:02:53]}  Rh1+ {[%clk 0:01:01]} 24. Ke2 {[%clk 0:02:53]}  Rxd1 {[%clk 0:00:59]} 25. Kxd1 {[%clk 0:02:54]}  Nh4 {[%clk 0:00:54]} 26. Ke2 {[%clk 0:02:47]}  Kd6 {[%clk 0:00:49]} 27. Rg1 {[%clk 0:02:47]}  Kc6 {[%clk 0:00:39]} 28. Rd1 {[%clk 0:02:36]}  Be7 {[%clk 0:00:31]} 29. Rg1 {[%clk 0:02:13]}  Rd8 {[%clk 0:00:24]} 30. Bd5+ {[%clk 0:02:01]}  Kc7 {[%clk 0:00:24]} 31. c4 {[%clk 0:01:48]}  b4 {[%clk 0:00:24]} 32. b3 {[%clk 0:01:48]}  Rh8 {[%clk 0:00:24]} 33. Bf7 {[%clk 0:01:46]}  Rd8 {[%clk 0:00:22]} 34. Bd5 {[%clk 0:01:46]}  Rh8 {[%clk 0:00:21]} 35. f4 {[%clk 0:01:25]}  Bf6 {[%clk 0:00:13]} 36. fxe5 {[%clk 0:01:18]}  Bxe5 {[%clk 0:00:14]} 37. Bxc5 {[%clk 0:01:18]}  Rh6 {[%clk 0:00:14]} 38. Bf7 {[%clk 0:01:15]}  a5 {[%clk 0:00:14]} 39. Be3 {[%clk 0:01:16]}  Rh5 {[%clk 0:00:14]} 40. Bg5 {[%clk 0:01:02]} 1-0


[Site "https://www.chess.com"]

[Event "Early Titled Tuesday Blitz | February 8 2022"]
[White "Vaishali, Rameshbabu"]
[Black "Visakh N R"]
[WhiteFideId "5091756"]
[BlackFideId "25012223"]
[WhiteElo "2343"]
[BlackElo "2454"]
[Result "0-1"]
[Round "09"]
[TimeControl "180+1"]
[Date "2022.02.08"]
[WhiteClock "0:00:01"]
[BlackClock "0:00:24"]

1. d4 {[%clk 0:03:00]}  Nf6 {[%clk 0:02:39]} 2. c4 {[%clk 0:02:59]}  c5 {[%clk 0:02:40]} 3. d5 {[%clk 0:02:55]}  e6 {[%clk 0:02:40]} 4. Nf3 {[%clk 0:02:45]}  exd5 {[%clk 0:02:40]} 5. cxd5 {[%clk 0:02:46]}  d6 {[%clk 0:02:41]} 6. a4 {[%clk 0:02:45]}  g6 {[%clk 0:02:40]} 7. Ra3 {[%clk 0:02:45]}  Bg7 {[%clk 0:02:35]} 8. Re3+ {[%clk 0:02:44]}  Kf8 {[%clk 0:02:36]} 9. Ra3 {[%clk 0:02:45]}  Na6 {[%clk 0:02:22]} 10. Nc3 {[%clk 0:02:44]}  h6 {[%clk 0:02:20]} 11. h4 {[%clk 0:02:42]}  Kg8 {[%clk 0:02:17]} 12. Bf4 {[%clk 0:02:25]}  Bf5 {[%clk 0:02:16]} 13. e3 {[%clk 0:02:24]}  Nb4 {[%clk 0:02:16]} 14. Bc4 {[%clk 0:01:53]}  Nc2+ {[%clk 0:02:03]} 15. Kf1 {[%clk 0:01:53]}  Nxa3 {[%clk 0:02:04]} 16. bxa3 {[%clk 0:01:54]}  Nh5 {[%clk 0:02:04]} 17. Ne2 {[%clk 0:01:41]}  Qf6 {[%clk 0:01:52]} 18. Ng3 {[%clk 0:01:30]}  Nxf4 {[%clk 0:01:50]} 19. exf4 {[%clk 0:01:30]}  Re8 {[%clk 0:01:47]} 20. Kg1 {[%clk 0:01:24]}  Bg4 {[%clk 0:01:45]} 21. Qd2 {[%clk 0:01:17]}  Qc3 {[%clk 0:01:22]} 22. Qxc3 {[%clk 0:01:11]}  Bxc3 {[%clk 0:01:23]} 23. h5 {[%clk 0:01:12]}  Kg7 {[%clk 0:01:19]} 24. Kh2 {[%clk 0:01:08]}  gxh5 {[%clk 0:01:15]} 25. Rb1 {[%clk 0:01:01]}  b6 {[%clk 0:01:15]} 26. Nh4 {[%clk 0:01:00]}  Re1 {[%clk 0:01:08]} 27. Rb3 {[%clk 0:00:57]}  Bd2 {[%clk 0:01:04]} 28. f3 {[%clk 0:00:22]}  Bd7 {[%clk 0:01:03]} 29. Ne4 {[%clk 0:00:16]}  Bxf4+ {[%clk 0:00:58]} 30. g3 {[%clk 0:00:15]}  Be5 {[%clk 0:00:58]} 31. Kg2 {[%clk 0:00:11]}  f5 {[%clk 0:00:57]} 32. Nf2 {[%clk 0:00:10]}  Bxa4 {[%clk 0:00:48]} 33. Rd3 {[%clk 0:00:07]}  Bd7 {[%clk 0:00:45]} 34. Rd2 {[%clk 0:00:03]}  Bf6 {[%clk 0:00:38]} 35. Nd3 {[%clk 0:00:02]}  Ra1 {[%clk 0:00:29]} 36. Nf4 {[%clk 0:00:02]}  Bxh4 {[%clk 0:00:29]} 37. gxh4 {[%clk 0:00:03]}  Rxa3 {[%clk 0:00:28]} 38. Nxh5+ {[%clk 0:00:03]}  Kf7 {[%clk 0:00:28]} 39. Nf4 {[%clk 0:00:02]}  b5 {[%clk 0:00:29]} 40. Be2 {[%clk 0:00:02]}  c4 {[%clk 0:00:29]} 41. Rc2 {[%clk 0:00:02]}  c3 {[%clk 0:00:28]} 42. Nd3 {[%clk 0:00:01]}  a5 {[%clk 0:00:28]} 43. f4 {[%clk 0:00:01]}  b4 {[%clk 0:00:28]} 44. Bh5+ {[%clk 0:00:02]}  Kf6 {[%clk 0:00:28]} 45. Kf3 {[%clk 0:00:02]}  b3 {[%clk 0:00:26]} 46. Rg2 {[%clk 0:00:02]}  b2 {[%clk 0:00:23]} 47. Rg6+ {[%clk 0:00:01]}  Ke7 {[%clk 0:00:23]} 48. Rg7+ {[%clk 0:00:01]}  Kd8 {[%clk 0:00:23]} 49. Rg1 {[%clk 0:00:01]}  c2 {[%clk 0:00:24]} 0-1


[Site "https://www.chess.com"]

[Event "Early Titled Tuesday Blitz | February 8 2022"]
[White "Vakhlamov, Igor L."]
[Black "Demchenko, Anton"]
[WhiteFideId "24126748"]
[BlackFideId "4160258"]
[WhiteElo "2401"]
[BlackElo "2539"]
[Result "0-1"]
[Round "09"]
[TimeControl "180+1"]
[Date "2022.02.08"]
[WhiteClock "0:00:46"]
[BlackClock "0:00:12"]

1. e4 {[%clk 0:03:00]}  e5 {[%clk 0:02:59]} 2. Nf3 {[%clk 0:03:01]}  Nc6 {[%clk 0:02:59]} 3. Nc3 {[%clk 0:03:01]}  Nf6 {[%clk 0:02:59]} 4. Bb5 {[%clk 0:03:02]}  Nd4 {[%clk 0:02:58]} 5. Bc4 {[%clk 0:03:02]}  c6 {[%clk 0:02:54]} 6. Nxe5 {[%clk 0:02:50]}  d5 {[%clk 0:02:52]} 7. exd5 {[%clk 0:02:45]}  Bd6 {[%clk 0:02:49]} 8. f4 {[%clk 0:02:21]}  cxd5 {[%clk 0:02:34]} 9. Bb3 {[%clk 0:02:08]}  Bxe5 {[%clk 0:02:32]} 10. fxe5 {[%clk 0:02:05]}  Bg4 {[%clk 0:02:31]} 11. exf6 {[%clk 0:01:59]}  Bxd1 {[%clk 0:02:31]} 12. fxg7 {[%clk 0:01:59]}  Rg8 {[%clk 0:02:12]} 13. Kxd1 {[%clk 0:01:59]}  Nxb3 {[%clk 0:02:06]} 14. axb3 {[%clk 0:01:55]}  Rxg7 {[%clk 0:02:05]} 15. d3 {[%clk 0:01:16]}  Rxg2 {[%clk 0:01:54]} 16. Bh6 {[%clk 0:01:07]}  Qh4 {[%clk 0:01:50]} 17. Re1+ {[%clk 0:01:03]}  Kd7 {[%clk 0:01:47]} 18. Bd2 {[%clk 0:00:33]}  Qxh2 {[%clk 0:01:47]} 19. Be3 {[%clk 0:00:33]}  Re8 {[%clk 0:01:33]} 20. Ra5 {[%clk 0:00:22]}  Rxe3 {[%clk 0:01:21]} 21. Rxd5+ {[%clk 0:00:21]}  Kc6 {[%clk 0:01:20]} 22. Rxe3 {[%clk 0:00:21]}  Rd2+ {[%clk 0:01:19]} 23. Kc1 {[%clk 0:00:21]}  Rxc2+ {[%clk 0:01:19]} 24. Kb1 {[%clk 0:00:21]}  Rxb2+ {[%clk 0:01:11]} 25. Ka1 {[%clk 0:00:21]}  Rxb3 {[%clk 0:01:07]} 26. Re2 {[%clk 0:00:21]}  Qh1+ {[%clk 0:00:57]} 27. Ka2 {[%clk 0:00:20]}  Rxc3 {[%clk 0:00:58]} 28. Rd8 {[%clk 0:00:19]}  Kb6 {[%clk 0:00:53]} 29. Rb2+ {[%clk 0:00:19]}  Ka6 {[%clk 0:00:53]} 30. Rd4 {[%clk 0:00:18]}  b6 {[%clk 0:00:46]} 31. Ra4+ {[%clk 0:00:16]}  Kb7 {[%clk 0:00:47]} 32. Rd4 {[%clk 0:00:17]}  Qc6 {[%clk 0:00:43]} 33. Rf2 {[%clk 0:00:16]}  Rc2+ {[%clk 0:00:43]} 34. Rxc2 {[%clk 0:00:16]}  Qxc2+ {[%clk 0:00:44]} 35. Ka1 {[%clk 0:00:17]}  Qc3+ {[%clk 0:00:44]} 36. Ka2 {[%clk 0:00:18]}  Qxd4 {[%clk 0:00:44]} 37. Kb3 {[%clk 0:00:19]}  h5 {[%clk 0:00:44]} 38. Kc2 {[%clk 0:00:19]}  h4 {[%clk 0:00:44]} 39. Kb3 {[%clk 0:00:20]}  h3 {[%clk 0:00:44]} 40. Ka3 {[%clk 0:00:21]}  f5 {[%clk 0:00:44]} 41. Kb3 {[%clk 0:00:22]}  a5 {[%clk 0:00:44]} 42. Ka3 {[%clk 0:00:23]}  b5 {[%clk 0:00:45]} 43. Kb3 {[%clk 0:00:24]}  f4 {[%clk 0:00:45]} 44. Ka3 {[%clk 0:00:24]}  f3 {[%clk 0:00:45]} 45. Kb3 {[%clk 0:00:25]}  h2 {[%clk 0:00:45]} 46. Ka3 {[%clk 0:00:26]}  f2 {[%clk 0:00:46]} 47. Kb3 {[%clk 0:00:27]}  Kb6 {[%clk 0:00:46]} 48. Ka3 {[%clk 0:00:28]}  Qb4+ {[%clk 0:00:46]} 49. Ka2 {[%clk 0:00:28]}  a4 {[%clk 0:00:45]} 50. d4 {[%clk 0:00:29]}  Qxd4 {[%clk 0:00:45]} 51. Ka3 {[%clk 0:00:29]}  Qd6+ {[%clk 0:00:45]} 52. Ka2 {[%clk 0:00:30]}  b4 {[%clk 0:00:45]} 53. Kb2 {[%clk 0:00:30]}  Ka5 {[%clk 0:00:43]} 54. Kc2 {[%clk 0:00:31]}  h1=Q {[%clk 0:00:42]} 55. Kb2 {[%clk 0:00:32]}  f1=Q {[%clk 0:00:42]} 56. Kc2 {[%clk 0:00:33]}  b3+ {[%clk 0:00:41]} 57. Kb2 {[%clk 0:00:34]}  a3+ {[%clk 0:00:37]} 58. Kc3 {[%clk 0:00:35]}  Qff3+ {[%clk 0:00:31]} 59. Kc4 {[%clk 0:00:35]}  Qd2 {[%clk 0:00:29]} 60. Kc5 {[%clk 0:00:34]}  b2 {[%clk 0:00:29]} 61. Kc4 {[%clk 0:00:35]}  a2 {[%clk 0:00:29]} 62. Kc5 {[%clk 0:00:36]}  a1=Q {[%clk 0:00:29]} 63. Kc4 {[%clk 0:00:37]}  b1=Q {[%clk 0:00:29]} 64. Kc5 {[%clk 0:00:38]}  Ka4 {[%clk 0:00:29]} 65. Kc4 {[%clk 0:00:39]}  Ka3 {[%clk 0:00:29]} 66. Kc5 {[%clk 0:00:40]}  Kb2 {[%clk 0:00:30]} 67. Kc4 {[%clk 0:00:41]}  Kc1 {[%clk 0:00:30]} 68. Kc5 {[%clk 0:00:42]}  Kd1 {[%clk 0:00:30]} 69. Kc4 {[%clk 0:00:43]}  Qfg2 {[%clk 0:00:28]} 70. Kc5 {[%clk 0:00:43]}  Qhh2 {[%clk 0:00:28]} 71. Kc4 {[%clk 0:00:44]}  Qbb2 {[%clk 0:00:28]} 72. Kc5 {[%clk 0:00:45]}  Qaa3+ {[%clk 0:00:25]} 73. Kc4 {[%clk 0:00:46]}  Qaa8 {[%clk 0:00:24]} 74. Kc5 {[%clk 0:00:41]}  Ke1 {[%clk 0:00:24]} 75. Kc4 {[%clk 0:00:40]}  Kf1 {[%clk 0:00:24]} 76. Kc5 {[%clk 0:00:41]}  Kg1 {[%clk 0:00:25]} 77. Kc4 {[%clk 0:00:42]}  Kh1 {[%clk 0:00:25]} 78. Kc5 {[%clk 0:00:43]}  Qhb8 {[%clk 0:00:19]} 79. Kc4 {[%clk 0:00:44]}  Qgf3 {[%clk 0:00:18]} 80. Kc5 {[%clk 0:00:45]}  Qg5+ {[%clk 0:00:14]} 81. Kc4 {[%clk 0:00:46]}  Qa4# {[%clk 0:00:12]} 0-1


[Site "https://www.chess.com"]

[Event "Early Titled Tuesday Blitz | February 8 2022"]
[White "Vifleemskaia, Svetlana"]
[Black "Shton, Roman"]
[WhiteFideId "4129490"]
[BlackFideId "14137461"]
[WhiteElo "1901"]
[BlackElo "2038"]
[Result "0-1"]
[Round "09"]
[TimeControl "180+1"]
[Date "2022.02.08"]
[WhiteClock "0:00:43"]
[BlackClock "0:01:19"]

1. d4 {[%clk 0:02:52]}  d5 {[%clk 0:02:59]} 2. c4 {[%clk 0:02:52]}  e6 {[%clk 0:02:59]} 3. Nc3 {[%clk 0:02:52]}  Bb4 {[%clk 0:03:00]} 4. Nf3 {[%clk 0:02:50]}  Nf6 {[%clk 0:03:00]} 5. cxd5 {[%clk 0:02:45]}  exd5 {[%clk 0:03:01]} 6. Bg5 {[%clk 0:02:45]}  Qd6 {[%clk 0:03:01]} 7. e3 {[%clk 0:02:43]}  c6 {[%clk 0:02:53]} 8. Bf4 {[%clk 0:02:39]}  Qe7 {[%clk 0:02:52]} 9. Bd3 {[%clk 0:02:36]}  Bg4 {[%clk 0:02:50]} 10. h3 {[%clk 0:02:34]}  Bh5 {[%clk 0:02:49]} 11. g4 {[%clk 0:02:32]}  Bg6 {[%clk 0:02:49]} 12. Qc2 {[%clk 0:02:33]}  Ne4 {[%clk 0:02:47]} 13. Ne5 {[%clk 0:02:31]}  Nd7 {[%clk 0:02:37]} 14. Nxg6 {[%clk 0:02:30]}  hxg6 {[%clk 0:02:38]} 15. Ke2 {[%clk 0:02:23]}  Bxc3 {[%clk 0:02:32]} 16. bxc3 {[%clk 0:02:22]}  g5 {[%clk 0:02:28]} 17. Bxe4 {[%clk 0:02:17]}  gxf4 {[%clk 0:02:27]} 18. Bf3 {[%clk 0:02:05]}  fxe3 {[%clk 0:02:26]} 19. fxe3 {[%clk 0:02:05]}  Nf6 {[%clk 0:02:10]} 20. Rab1 {[%clk 0:01:59]}  b5 {[%clk 0:02:09]} 21. a4 {[%clk 0:01:58]}  a6 {[%clk 0:02:08]} 22. Qf5 {[%clk 0:01:56]}  O-O {[%clk 0:01:57]} 23. g5 {[%clk 0:01:51]}  Ne8 {[%clk 0:01:57]} 24. h4 {[%clk 0:01:32]}  Nd6 {[%clk 0:01:57]} 25. Qd3 {[%clk 0:01:26]}  Rfe8 {[%clk 0:01:51]} 26. Kd2 {[%clk 0:01:20]}  Nc4+ {[%clk 0:01:50]} 27. Kc2 {[%clk 0:01:17]}  Nxe3+ {[%clk 0:01:45]} 28. Kb3 {[%clk 0:01:12]}  bxa4+ {[%clk 0:01:42]} 29. Kxa4 {[%clk 0:01:12]}  Nc4 {[%clk 0:01:41]} 30. Rb3 {[%clk 0:01:00]}  Qc7 {[%clk 0:01:38]} 31. Rb4 {[%clk 0:00:58]}  Qa5+ {[%clk 0:01:31]} 32. Kb3 {[%clk 0:00:57]}  Qa3+ {[%clk 0:01:31]} 33. Kc2 {[%clk 0:00:57]}  Qa2+ {[%clk 0:01:27]} 34. Kc1 {[%clk 0:00:57]}  Re3 {[%clk 0:01:22]} 35. Qb1 {[%clk 0:00:43]}  Qd2# {[%clk 0:01:19]} 0-1


[Site "https://www.chess.com"]

[Event "Early Titled Tuesday Blitz | February 8 2022"]
[White "Vusatiuk, Vladimir"]
[Black "Gunina, Valentina"]
[WhiteFideId "14118610"]
[BlackFideId "4167570"]
[WhiteElo "2157"]
[BlackElo "2465"]
[Result "0-1"]
[Round "09"]
[TimeControl "180+1"]
[Date "2022.02.08"]
[WhiteClock "0:00:42"]
[BlackClock "0:02:49"]

1. d4 {[%clk 0:02:58]}  d5 {[%clk 0:02:59]} 2. c4 {[%clk 0:02:54]}  c6 {[%clk 0:03:00]} 3. Nf3 {[%clk 0:02:49]}  Nf6 {[%clk 0:03:00]} 4. cxd5 {[%clk 0:02:49]}  cxd5 {[%clk 0:03:00]} 5. Bf4 {[%clk 0:02:48]}  Nc6 {[%clk 0:02:59]} 6. Nc3 {[%clk 0:02:47]}  a6 {[%clk 0:03:00]} 7. e3 {[%clk 0:02:46]}  Bg4 {[%clk 0:02:58]} 8. Qb3 {[%clk 0:02:31]}  Na5 {[%clk 0:02:56]} 9. Qa4+ {[%clk 0:02:31]}  b5 {[%clk 0:02:56]} 10. Nxb5 {[%clk 0:01:44]}  axb5 {[%clk 0:02:55]} 11. Bxb5+ {[%clk 0:01:45]}  Bd7 {[%clk 0:02:54]} 12. Ne5 {[%clk 0:01:18]}  Nc6 {[%clk 0:02:54]} 13. Qb3 {[%clk 0:00:47]}  Nxe5 {[%clk 0:02:52]} 14. dxe5 {[%clk 0:00:44]}  Qa5+ {[%clk 0:02:52]} 15. Kd1 {[%clk 0:00:42]}  Bxb5 {[%clk 0:02:50]} 16. exf6 {[%clk 0:00:42]}  Ba4 {[%clk 0:02:49]} 0-1


[Site "https://www.chess.com"]

[Event "Early Titled Tuesday Blitz | February 8 2022"]
[White "Wahedi, Ahmad Siar"]
[Black "Dew, Brian"]
[WhiteFideId "4651260"]
[BlackFideId "6000495"]
[WhiteElo "2372"]
[BlackElo "2118"]
[Result "0-1"]
[Round "09"]
[TimeControl "180+1"]
[Date "2022.02.08"]
[WhiteClock "0:00:03"]
[BlackClock "0:00:01"]

1. c4 {[%clk 0:03:00]}  e5 {[%clk 0:02:57]} 2. Nc3 {[%clk 0:02:59]}  Nf6 {[%clk 0:02:57]} 3. g3 {[%clk 0:02:59]}  Nc6 {[%clk 0:02:54]} 4. Bg2 {[%clk 0:02:58]}  Bb4 {[%clk 0:02:53]} 5. Nd5 {[%clk 0:02:57]}  O-O {[%clk 0:02:49]} 6. Nxb4 {[%clk 0:02:55]}  Nxb4 {[%clk 0:02:49]} 7. Nf3 {[%clk 0:02:56]}  e4 {[%clk 0:02:43]} 8. Nd4 {[%clk 0:02:55]}  Re8 {[%clk 0:02:42]} 9. O-O {[%clk 0:02:54]}  Nc6 {[%clk 0:02:37]} 10. Nxc6 {[%clk 0:02:47]}  dxc6 {[%clk 0:02:34]} 11. d4 {[%clk 0:02:47]}  Bf5 {[%clk 0:02:18]} 12. h3 {[%clk 0:02:44]}  h6 {[%clk 0:02:09]} 13. Be3 {[%clk 0:02:41]}  Qd7 {[%clk 0:02:07]} 14. Kh2 {[%clk 0:02:40]}  Rad8 {[%clk 0:02:07]} 15. Qd2 {[%clk 0:02:40]}  c5 {[%clk 0:01:48]} 16. d5 {[%clk 0:02:36]}  b6 {[%clk 0:01:46]} 17. Rad1 {[%clk 0:02:29]}  Qe7 {[%clk 0:01:36]} 18. a3 {[%clk 0:02:25]}  Nd7 {[%clk 0:01:33]} 19. b4 {[%clk 0:02:14]}  Ne5 {[%clk 0:01:13]} 20. Qc3 {[%clk 0:02:13]}  Qf6 {[%clk 0:00:58]} 21. Rc1 {[%clk 0:02:07]}  cxb4 {[%clk 0:00:54]} 22. axb4 {[%clk 0:02:07]}  c6 {[%clk 0:00:54]} 23. dxc6 {[%clk 0:01:32]}  Qxc6 {[%clk 0:00:54]} 24. c5 {[%clk 0:01:29]}  Qb5 {[%clk 0:00:29]} 25. Bd4 {[%clk 0:01:09]}  f6 {[%clk 0:00:21]} 26. c6 {[%clk 0:00:59]}  Nxc6 {[%clk 0:00:18]} 27. Bxf6 {[%clk 0:00:54]}  Rc8 {[%clk 0:00:13]} 28. Bxg7 {[%clk 0:00:50]}  Ne5 {[%clk 0:00:13]} 29. Bxe5 {[%clk 0:00:25]}  Rxc3 {[%clk 0:00:11]} 30. Bxc3 {[%clk 0:00:24]}  Qxe2 {[%clk 0:00:11]} 31. Bd4 {[%clk 0:00:19]}  Qd3 {[%clk 0:00:10]} 32. Be3 {[%clk 0:00:18]}  Rc8 {[%clk 0:00:08]} 33. Rxc8+ {[%clk 0:00:14]}  Bxc8 {[%clk 0:00:09]} 34. Rc1 {[%clk 0:00:12]}  Ba6 {[%clk 0:00:09]} 35. Rc7 {[%clk 0:00:10]}  Qb1 {[%clk 0:00:04]} 36. Rxa7 {[%clk 0:00:08]}  Bf1 {[%clk 0:00:04]} 37. Bxf1 {[%clk 0:00:04]}  Qxf1 {[%clk 0:00:03]} 38. Bxb6 {[%clk 0:00:04]}  Qb5 {[%clk 0:00:03]} 39. Bc5 {[%clk 0:00:03]}  Qd3 {[%clk 0:00:01]} 0-1


[Site "https://www.chess.com"]

[Event "Early Titled Tuesday Blitz | February 8 2022"]
[White "Warchol, Kamil"]
[Black "Martinez Lopez, David"]
[WhiteFideId "21858241"]
[BlackFideId "22235779"]
[WhiteElo "1905"]
[BlackElo "2377"]
[Result "0-1"]
[Round "09"]
[TimeControl "180+1"]
[Date "2022.02.08"]
[WhiteClock "0:00:02"]
[BlackClock "0:00:09"]

1. e4 {[%clk 0:03:00]}  c5 {[%clk 0:02:59]} 2. Nf3 {[%clk 0:02:59]}  d6 {[%clk 0:02:58]} 3. d4 {[%clk 0:02:58]}  cxd4 {[%clk 0:02:59]} 4. Nxd4 {[%clk 0:02:58]}  Nf6 {[%clk 0:03:00]} 5. Nc3 {[%clk 0:02:56]}  a6 {[%clk 0:03:00]} 6. f4 {[%clk 0:02:55]}  e5 {[%clk 0:02:59]} 7. Nf3 {[%clk 0:02:54]}  Nbd7 {[%clk 0:02:58]} 8. a4 {[%clk 0:02:52]}  Qc7 {[%clk 0:02:54]} 9. Bd3 {[%clk 0:02:50]}  Be7 {[%clk 0:02:54]} 10. O-O {[%clk 0:02:49]}  O-O {[%clk 0:02:55]} 11. Qe1 {[%clk 0:02:50]}  b6 {[%clk 0:02:30]} 12. Nh4 {[%clk 0:02:32]}  g6 {[%clk 0:02:29]} 13. fxe5 {[%clk 0:02:27]}  dxe5 {[%clk 0:02:00]} 14. Bg5 {[%clk 0:02:22]}  Re8 {[%clk 0:01:42]} 15. Kh1 {[%clk 0:02:10]}  Bb7 {[%clk 0:01:40]} 16. Qg3 {[%clk 0:01:56]}  Nh5 {[%clk 0:01:32]} 17. Qe3 {[%clk 0:01:54]}  Bxg5 {[%clk 0:01:17]} 18. Qxg5 {[%clk 0:01:52]}  Qd8 {[%clk 0:01:18]} 19. Qxd8 {[%clk 0:01:40]}  Raxd8 {[%clk 0:01:18]} 20. Bc4 {[%clk 0:01:41]}  Re7 {[%clk 0:01:11]} 21. Rad1 {[%clk 0:01:37]}  Rc8 {[%clk 0:01:11]} 22. Bd5 {[%clk 0:00:57]}  Ndf6 {[%clk 0:00:58]} 23. Bxb7 {[%clk 0:00:49]}  Rxb7 {[%clk 0:00:59]} 24. Rd6 {[%clk 0:00:48]}  Kg7 {[%clk 0:00:53]} 25. Rd3 {[%clk 0:00:36]}  Rc4 {[%clk 0:00:51]} 26. b3 {[%clk 0:00:35]}  Rd4 {[%clk 0:00:50]} 27. Nf3 {[%clk 0:00:29]}  Rxd3 {[%clk 0:00:44]} 28. cxd3 {[%clk 0:00:30]}  Rc7 {[%clk 0:00:36]} 29. Ne2 {[%clk 0:00:24]}  Nd7 {[%clk 0:00:35]} 30. Rc1 {[%clk 0:00:21]}  Rxc1+ {[%clk 0:00:32]} 31. Nxc1 {[%clk 0:00:22]}  Kf6 {[%clk 0:00:31]} 32. Kg1 {[%clk 0:00:20]}  Ke6 {[%clk 0:00:29]} 33. Kf2 {[%clk 0:00:19]}  a5 {[%clk 0:00:28]} 34. Ke3 {[%clk 0:00:19]}  h6 {[%clk 0:00:25]} 35. g3 {[%clk 0:00:19]}  f5 {[%clk 0:00:24]} 36. Na2 {[%clk 0:00:16]}  Nhf6 {[%clk 0:00:24]} 37. Nc3 {[%clk 0:00:14]}  Nc5 {[%clk 0:00:23]} 38. Nd2 {[%clk 0:00:12]}  Ng4+ {[%clk 0:00:19]} 39. Ke2 {[%clk 0:00:12]}  Nxh2 {[%clk 0:00:20]} 40. Nc4 {[%clk 0:00:11]}  Nd7 {[%clk 0:00:19]} 41. Nd5 {[%clk 0:00:10]}  fxe4 {[%clk 0:00:16]} 42. dxe4 {[%clk 0:00:10]}  Nc5 {[%clk 0:00:17]} 43. Ndxb6 {[%clk 0:00:07]}  Nxb3 {[%clk 0:00:16]} 44. Nd5 {[%clk 0:00:05]}  Ng4 {[%clk 0:00:16]} 45. Nde3 {[%clk 0:00:03]}  Nf6 {[%clk 0:00:15]} 46. Kd3 {[%clk 0:00:03]}  Nc5+ {[%clk 0:00:15]} 47. Kc2 {[%clk 0:00:02]}  Nfxe4 {[%clk 0:00:16]} 48. Nxa5 {[%clk 0:00:01]}  Nxa4 {[%clk 0:00:16]} 49. Nac4 {[%clk 0:00:02]}  Nac5 {[%clk 0:00:16]} 50. Kd1 {[%clk 0:00:02]}  Nd6 {[%clk 0:00:15]} 51. Ke2 {[%clk 0:00:02]}  Nxc4 {[%clk 0:00:15]} 52. Nxc4 {[%clk 0:00:03]}  Ne4 {[%clk 0:00:16]} 53. Kf3 {[%clk 0:00:03]}  Nf6 {[%clk 0:00:16]} 54. Nd2 {[%clk 0:00:02]}  Kf5 {[%clk 0:00:16]} 55. Nf1 {[%clk 0:00:02]}  e4+ {[%clk 0:00:16]} 56. Kg2 {[%clk 0:00:02]}  Ke5 {[%clk 0:00:15]} 57. Ne3 {[%clk 0:00:02]}  Kd4 {[%clk 0:00:14]} 58. Kf2 {[%clk 0:00:02]}  Nd5 {[%clk 0:00:13]} 59. Nc2+ {[%clk 0:00:01]}  Kd3 {[%clk 0:00:12]} 60. Ne1+ {[%clk 0:00:01]}  Kd2 {[%clk 0:00:11]} 61. Ng2 {[%clk 0:00:01]}  e3+ {[%clk 0:00:11]} 62. Kf3 {[%clk 0:00:01]}  e2 {[%clk 0:00:10]} 63. Ke4 {[%clk 0:00:02]}  Ne3 {[%clk 0:00:09]} 0-1


[Site "https://www.chess.com"]